Workbook

Sheet INSTRUCTIONS
A1: Click any of the below instructions for further information & illustration
B2: Enable Macros If the Security Warning yellow ribbon is visible above your formula bar in Excel, click Enable Content
B4: 1. Create required charts in the PPT Charts & Data worksheet tab, or modify the samples included
B6: 2. Name data ranges to be included in the presentation in the PPT Charts & Data worksheet tab
B8: 3. Add new slides by clicking the 'Add' button in the Slide Options worksheet tab
B10: 4. Delete slides to include in the presentation by clicking the 'Minus' button in the Slide Options worksheet tab
B12: 5. Enter slide title and select content type (Chart, Data or Title)
B14: 6. Choose the content (chart name or data range name) from the drop down list (Note that the drop down lists automatically populate with new charts and data ranges)
B16: 7. Repeat steps 5 & 6 to populate Content 2 Type & Content 2 Range if a side by side layout is desired (Note that the PowerPoint slide layout will automatically format based on whether Content 2 is selected)
B18: 8. To create a title slide (with text only, no charts or data): Add a new slide & choose the content type 'Title' Enter the text in the Text column, using ALT+Enter to begin each new line
B20: 9. In the Slide Options worksheet tab, enter the file path and name of your PowerPoint template
B22: 10. In the Slide Options worksheet tabClick Export to PPT
B24: 11. Watch the PowerPoint presentation build automatically using all of the selections made in Excel.

Sheet Slide Options
B2: Slide No | C2: Slide Title | D2: Content Boxes | E2: Content 1 Type | F2: Content 1 Range/Chart | G2: Content 2 Type | H2: Content 2 Range/Chart | I2: Text (Title Slides Only) | J2: Layout | K2: Add / Delete Slide
B3: 1 | C3: 2014 Sales Update | D3: =IF(tblSlide_Data[[#This Row],[Content 1 Type]]<>"Title",COUNTA(tblSlide_Data[[#This Row],[Content 1 Type]],tblSlide_Data[[#This Row],[Content 2 Type]]),0) -> 0 | E3: Title | I3: A presentation showing automatic generation of powerpoint slides from dynamic charts that update to the most current source data The content is driven by the users selection The layout is driven by the users selection The tedious and time consuming tasks are all taken care of - automatically | J3: =IF(tblSlide_Data[[#This Row],[Content Boxes]]<2,16,29) -> 16
B4: =B3+1 -> 2 | C4: 2014 Sales by Vehicle Make | D4: =IF(tblSlide_Data[[#This Row],[Content 1 Type]]<>"Title",COUNTA(tblSlide_Data[[#This Row],[Content 1 Type]],tblSlide_Data[[#This Row],[Content 2 Type]]),0) -> 1 | E4: Chart | F4: SALES BY MAKE | J4: =IF(tblSlide_Data[[#This Row],[Content Boxes]]<2,16,29) -> 16 | N4: Enter Presentation Template File Path & Name (if applicable)
B5: 3 | C5: 2014 Sales by Region | D5: =IF(tblSlide_Data[[#This Row],[Content 1 Type]]<>"Title",COUNTA(tblSlide_Data[[#This Row],[Content 1 Type]],tblSlide_Data[[#This Row],[Content 2 Type]]),0) -> 2 | E5: Data | F5: sales_by_region | G5: Chart | H5: SALES BY REGION | J5: =IF(tblSlide_Data[[#This Row],[Content Boxes]]<2,16,29) -> 29 | M5: e.g.: | N5: C:\Users\USER\SkyDrive\DOC Office\Training\Word Introduction.pptx
B6: =#REF!+1 ->  | C6: 2014 Vehicle Sales by Sales Person | D6: =IF(tblSlide_Data[[#This Row],[Content 1 Type]]<>"Title",COUNTA(tblSlide_Data[[#This Row],[Content 1 Type]],tblSlide_Data[[#This Row],[Content 2 Type]]),0) -> 2 | E6: Data | F6: sales_by_rep | G6: Chart | H6: SALES BY QUARTER | J6: =IF(tblSlide_Data[[#This Row],[Content Boxes]]<2,16,29) -> 29
C7: 2014 Vehicle Sales by Month | D7: =IF(tblSlide_Data[[#This Row],[Content 1 Type]]<>"Title",COUNTA(tblSlide_Data[[#This Row],[Content 1 Type]],tblSlide_Data[[#This Row],[Content 2 Type]]),0) -> 1 | E7: Data | F7: sales_by_quarter | J7: =IF(tblSlide_Data[[#This Row],[Content Boxes]]<2,16,29) -> 16 | M7: Note: if the file path & name are incorrect, a generic template will be used instead
C8: 2014 Vehicle Sales by Quarter | D8: =IF(tblSlide_Data[[#This Row],[Content 1 Type]]<>"Title",COUNTA(tblSlide_Data[[#This Row],[Content 1 Type]],tblSlide_Data[[#This Row],[Content 2 Type]]),0) -> 1 | E8: Chart | F8: Sales by Month | J8: =IF(tblSlide_Data[[#This Row],[Content Boxes]]<2,16,29) -> 16
B9: =B8+1 ->  | C9: 2014 Vehicle Sales by Sales Person | D9: =IF(tblSlide_Data[[#This Row],[Content 1 Type]]<>"Title",COUNTA(tblSlide_Data[[#This Row],[Content 1 Type]],tblSlide_Data[[#This Row],[Content 2 Type]]),0) -> 2 | E9: Chart | F9: # No of Sales | G9: Chart | H9: $ Value of Sales | J9: =IF(tblSlide_Data[[#This Row],[Content Boxes]]<2,16,29) -> 29
B10: =B8+1 ->  | C10: In Summary | D10: =IF(tblSlide_Data[[#This Row],[Content 1 Type]]<>"Title",COUNTA(tblSlide_Data[[#This Row],[Content 1 Type]],tblSlide_Data[[#This Row],[Content 2 Type]]),0) -> 0 | E10: Title | I10: We've created a method to generate our powerpoint presentations in seconds - not hours We've ensured consistency - the presentation will always present information in a the same format - until we change it We've negated the need to do any manual analysis with our clever formulas that update to the most current data We've eliminated the need to manually copy and paste. All round, we've saved ourselves heaps of time and eliminated the boring admin required to analyse and present the data. | J10: =IF(tblSlide_Data[[#This Row],[Content Boxes]]<2,16,29) -> 16

Sheet PPT Charts & Data
B2: SALES BY QUARTER
D3: Lois Lane | E3: Oliver Queen | F3: Peter Parker | G3: Mary Jane | H3: TOTAL
B4: Quarter | C4: 1 | D4: =SUMIFS('Source Data'!$J:$J,'Source Data'!$B:$B,">=01/01/2014",'Source Data'!$B:$B,"<=31/03/2014",'Source Data'!$C:$C,'PPT Charts & Data'!D$3) -> 388890 | E4: =SUMIFS('Source Data'!$J:$J,'Source Data'!$B:$B,">=01/01/2014",'Source Data'!$B:$B,"<=31/03/2014",'Source Data'!$C:$C,'PPT Charts & Data'!E$3) -> 293400 | F4: =SUMIFS('Source Data'!$J:$J,'Source Data'!$B:$B,">=01/01/2014",'Source Data'!$B:$B,"<=31/03/2014",'Source Data'!$C:$C,'PPT Charts & Data'!F$3) -> 146800 | G4: =SUMIFS('Source Data'!$J:$J,'Source Data'!$B:$B,">=01/01/2014",'Source Data'!$B:$B,"<=31/03/2014",'Source Data'!$C:$C,'PPT Charts & Data'!G$3) -> 64000 | H4: =SUM(D4:G4) -> 893090
B5: Quarter | C5: 2 | D5: =SUMIFS('Source Data'!$J:$J,'Source Data'!$B:$B,">=01/04/2014",'Source Data'!$B:$B,"<=30/06/2014",'Source Data'!$C:$C,'PPT Charts & Data'!D$3) -> 334500 | E5: =SUMIFS('Source Data'!$J:$J,'Source Data'!$B:$B,">=01/04/2014",'Source Data'!$B:$B,"<=30/06/2014",'Source Data'!$C:$C,'PPT Charts & Data'!E$3) -> 219700 | F5: =SUMIFS('Source Data'!$J:$J,'Source Data'!$B:$B,">=01/04/2014",'Source Data'!$B:$B,"<=30/06/2014",'Source Data'!$C:$C,'PPT Charts & Data'!F$3) -> 204000 | G5: =SUMIFS('Source Data'!$J:$J,'Source Data'!$B:$B,">=01/04/2014",'Source Data'!$B:$B,"<=30/06/2014",'Source Data'!$C:$C,'PPT Charts & Data'!G$3) -> 113340 | H5: =SUM(D5:G5) -> 871540
B6: Quarter | C6: 3 | D6: =SUMIFS('Source Data'!$J:$J,'Source Data'!$B:$B,">=01/07/2014",'Source Data'!$B:$B,"<=30/09/2014",'Source Data'!$C:$C,'PPT Charts & Data'!D$3) -> 324700 | E6: =SUMIFS('Source Data'!$J:$J,'Source Data'!$B:$B,">=01/07/2014",'Source Data'!$B:$B,"<=30/09/2014",'Source Data'!$C:$C,'PPT Charts & Data'!E$3) -> 206700 | F6: =SUMIFS('Source Data'!$J:$J,'Source Data'!$B:$B,">=01/07/2014",'Source Data'!$B:$B,"<=30/09/2014",'Source Data'!$C:$C,'PPT Charts & Data'!F$3) -> 245200 | G6: =SUMIFS('Source Data'!$J:$J,'Source Data'!$B:$B,">=01/07/2014",'Source Data'!$B:$B,"<=30/09/2014",'Source Data'!$C:$C,'PPT Charts & Data'!G$3) -> 77300 | H6: 853900
B7: Quarter | C7: 4 | D7: =SUMIFS('Source Data'!$J:$J,'Source Data'!$B:$B,">=01/10/2014",'Source Data'!$B:$B,"<=31/12/2014",'Source Data'!$C:$C,'PPT Charts & Data'!D$3) -> 338800 | E7: =SUMIFS('Source Data'!$J:$J,'Source Data'!$B:$B,">=01/10/2014",'Source Data'!$B:$B,"<=31/12/2014",'Source Data'!$C:$C,'PPT Charts & Data'!E$3) -> 455500 | F7: =SUMIFS('Source Data'!$J:$J,'Source Data'!$B:$B,">=01/10/2014",'Source Data'!$B:$B,"<=31/12/2014",'Source Data'!$C:$C,'PPT Charts & Data'!F$3) -> 138000 | G7: =SUMIFS('Source Data'!$J:$J,'Source Data'!$B:$B,">=01/10/2014",'Source Data'!$B:$B,"<=31/12/2014",'Source Data'!$C:$C,'PPT Charts & Data'!G$3) -> 81599 | H7: 1013899
B8: TOTAL | D8: =SUM(D4:D7) -> 1386890 | E8: =SUM(E4:E7) -> 1175300 | F8: 734000 | G8: 336239 | H8: 3632429
B11: SALES BY MAKE
B12: Make | C12: # No of Sales | D12: $ Value of Sales
B13: Hyundai | C13: =COUNTIF('Source Data'!D:D,'PPT Charts & Data'!B13) -> 10 | D13: =SUMIF('Source Data'!D:D,'PPT Charts & Data'!B13,'Source Data'!J:J) -> 46800
B14: Peugot | C14: =COUNTIF('Source Data'!D:D,'PPT Charts & Data'!B14) -> 21 | D14: =SUMIF('Source Data'!D:D,'PPT Charts & Data'!B14,'Source Data'!J:J) -> 86600
B15: KIA | C15: =COUNTIF('Source Data'!D:D,'PPT Charts & Data'!B15) -> 35 | D15: =SUMIF('Source Data'!D:D,'PPT Charts & Data'!B15,'Source Data'!J:J) -> 204900
B16: GMH | C16: =COUNTIF('Source Data'!D:D,'PPT Charts & Data'!B16) -> 25 | D16: =SUMIF('Source Data'!D:D,'PPT Charts & Data'!B16,'Source Data'!J:J) -> 206800
B17: Renault | C17: =COUNTIF('Source Data'!D:D,'PPT Charts & Data'!B17) -> 40 | D17: =SUMIF('Source Data'!D:D,'PPT Charts & Data'!B17,'Source Data'!J:J) -> 259600
B18: Volkswagen | C18: =COUNTIF('Source Data'!D:D,'PPT Charts & Data'!B18) -> 45 | D18: =SUMIF('Source Data'!D:D,'PPT Charts & Data'!B18,'Source Data'!J:J) -> 282690
B19: Nissan | C19: =COUNTIF('Source Data'!D:D,'PPT Charts & Data'!B19) -> 60 | D19: =SUMIF('Source Data'!D:D,'PPT Charts & Data'!B19,'Source Data'!J:J) -> 392890
B20: Ford | C20: =COUNTIF('Source Data'!D:D,'PPT Charts & Data'!B20) -> 70 | D20: =SUMIF('Source Data'!D:D,'PPT Charts & Data'!B20,'Source Data'!J:J) -> 424800
B21: Mitsubishi | C21: =COUNTIF('Source Data'!D:D,'PPT Charts & Data'!B21) -> 35 | D21: =SUMIF('Source Data'!D:D,'PPT Charts & Data'!B21,'Source Data'!J:J) -> 479900
B22: Toyota | C22: =COUNTIF('Source Data'!D:D,'PPT Charts & Data'!B22) -> 73 | D22: =SUMIF('Source Data'!D:D,'PPT Charts & Data'!B22,'Source Data'!J:J) -> 502799
B23: BMW | C23: =COUNTIF('Source Data'!D:D,'PPT Charts & Data'!B23) -> 101 | D23: =SUMIF('Source Data'!D:D,'PPT Charts & Data'!B23,'Source Data'!J:J) -> 744650
B24: TOTAL | C24: =SUM(C13:C23) -> 515 | D24: =SUM(D13:D23) -> 3632429
B26: SALES BY REP
B27: Sales Person | C27: # No of Sales | D27: $ Value of Sales
B28: Lois Lane | C28: =COUNTIF('Source Data'!C:C,'PPT Charts & Data'!B28) -> 170 | D28: =SUMIF('Source Data'!C:C,'PPT Charts & Data'!B28,'Source Data'!J:J) -> 1386890 | E28: =ROUND(D28/1000000,1)&"m" -> 1.4m
B29: Peter Parker | C29: =COUNTIF('Source Data'!C:C,'PPT Charts & Data'!B29) -> 105 | D29: =SUMIF('Source Data'!C:C,'PPT Charts & Data'!B29,'Source Data'!J:J) -> 734000 | E29: =ROUND(D29/1000000,1)&"m" -> 0.7m
B30: Mary Jane | C30: =COUNTIF('Source Data'!C:C,'PPT Charts & Data'!B30) -> 55 | D30: =SUMIF('Source Data'!C:C,'PPT Charts & Data'!B30,'Source Data'!J:J) -> 336239 | E30: 0.3m
B31: Oliver Queen | C31: =COUNTIF('Source Data'!C:C,'PPT Charts & Data'!B31) -> 185 | D31: =SUMIF('Source Data'!C:C,'PPT Charts & Data'!B31,'Source Data'!J:J) -> 1175300 | E31: 1.2m
B32: TOTAL | C32: =SUM(C28:C31) -> 515 | D32: =SUM(D28:D31) -> 3632429 | E32: =D32 -> 3632429
B34: SALES BY REGION
B35: Region | C35: # No of Sales | D35: $ Value of Sales
B36: East | C36: =COUNTIF('Source Data'!K:K,'PPT Charts & Data'!B36) -> 97 | D36: =SUMIF('Source Data'!K:K,'PPT Charts & Data'!B36,'Source Data'!J:J) -> 568490
B37: North | C37: =COUNTIF('Source Data'!K:K,'PPT Charts & Data'!B37) -> 165 | D37: =SUMIF('Source Data'!K:K,'PPT Charts & Data'!B37,'Source Data'!J:J) -> 1427200
B38: South | C38: =COUNTIF('Source Data'!K:K,'PPT Charts & Data'!B38) -> 253 | D38: =SUMIF('Source Data'!K:K,'PPT Charts & Data'!B38,'Source Data'!J:J) -> 1636739
B39: West | C39: =COUNTIF('Source Data'!K:K,'PPT Charts & Data'!B39) -> 0 | D39: =SUMIF('Source Data'!K:K,'PPT Charts & Data'!B39,'Source Data'!J:J) -> 0
B40: TOTAL | C40: =SUM(C36:C39) -> 515 | D40: =SUM(D36:D39) -> 3632429
B42: SALES BY MONTH
B43: Month | C43: # No of Sales | D43: $ Value of Sales | E43: Average Price
B44: 2014-01-01 | C44: =COUNTIFS('Source Data'!B:B,">="&'PPT Charts & Data'!B44,'Source Data'!B:B,"<="&EOMONTH('PPT Charts & Data'!B44,0)) -> 45 | D44: =SUMIFS('Source Data'!J:J,'Source Data'!B:B,">="&'PPT Charts & Data'!B44,'Source Data'!B:B,"<="&EOMONTH('PPT Charts & Data'!B44,0)) -> 376400 | E44: =AVERAGEIFS('Source Data'!J:J,'Source Data'!B:B,">="&'PPT Charts & Data'!B44,'Source Data'!B:B,"<="&EOMONTH('PPT Charts & Data'!B44,0)) -> 8364.444444
B45: 2014-02-01 | C45: =COUNTIFS('Source Data'!B:B,">="&'PPT Charts & Data'!B45,'Source Data'!B:B,"<="&EOMONTH('PPT Charts & Data'!B45,0)) -> 43 | D45: =SUMIFS('Source Data'!J:J,'Source Data'!B:B,">="&'PPT Charts & Data'!B45,'Source Data'!B:B,"<="&EOMONTH('PPT Charts & Data'!B45,0)) -> 235290 | E45: =AVERAGEIFS('Source Data'!J:J,'Source Data'!B:B,">="&'PPT Charts & Data'!B45,'Source Data'!B:B,"<="&EOMONTH('PPT Charts & Data'!B45,0)) -> 5471.860465
B46: 2014-03-01 | C46: =COUNTIFS('Source Data'!B:B,">="&'PPT Charts & Data'!B46,'Source Data'!B:B,"<="&EOMONTH('PPT Charts & Data'!B46,0)) -> 45 | D46: =SUMIFS('Source Data'!J:J,'Source Data'!B:B,">="&'PPT Charts & Data'!B46,'Source Data'!B:B,"<="&EOMONTH('PPT Charts & Data'!B46,0)) -> 281400 | E46: =AVERAGEIFS('Source Data'!J:J,'Source Data'!B:B,">="&'PPT Charts & Data'!B46,'Source Data'!B:B,"<="&EOMONTH('PPT Charts & Data'!B46,0)) -> 6253.333333
B47: 2014-04-01 | C47: =COUNTIFS('Source Data'!B:B,">="&'PPT Charts & Data'!B47,'Source Data'!B:B,"<="&EOMONTH('PPT Charts & Data'!B47,0)) -> 41 | D47: =SUMIFS('Source Data'!J:J,'Source Data'!B:B,">="&'PPT Charts & Data'!B47,'Source Data'!B:B,"<="&EOMONTH('PPT Charts & Data'!B47,0)) -> 337150 | E47: =AVERAGEIFS('Source Data'!J:J,'Source Data'!B:B,">="&'PPT Charts & Data'!B47,'Source Data'!B:B,"<="&EOMONTH('PPT Charts & Data'!B47,0)) -> 8223.170732
B48: 2014-05-01 | C48: =COUNTIFS('Source Data'!B:B,">="&'PPT Charts & Data'!B48,'Source Data'!B:B,"<="&EOMONTH('PPT Charts & Data'!B48,0)) -> 39 | D48: =SUMIFS('Source Data'!J:J,'Source Data'!B:B,">="&'PPT Charts & Data'!B48,'Source Data'!B:B,"<="&EOMONTH('PPT Charts & Data'!B48,0)) -> 204900 | E48: =AVERAGEIFS('Source Data'!J:J,'Source Data'!B:B,">="&'PPT Charts & Data'!B48,'Source Data'!B:B,"<="&EOMONTH('PPT Charts & Data'!B48,0)) -> 5253.846154
B49: 2014-06-01 | C49: =COUNTIFS('Source Data'!B:B,">="&'PPT Charts & Data'!B49,'Source Data'!B:B,"<="&EOMONTH('PPT Charts & Data'!B49,0)) -> 45 | D49: =SUMIFS('Source Data'!J:J,'Source Data'!B:B,">="&'PPT Charts & Data'!B49,'Source Data'!B:B,"<="&EOMONTH('PPT Charts & Data'!B49,0)) -> 329490 | E49: =AVERAGEIFS('Source Data'!J:J,'Source Data'!B:B,">="&'PPT Charts & Data'!B49,'Source Data'!B:B,"<="&EOMONTH('PPT Charts & Data'!B49,0)) -> 7322
B50: 2014-07-01 | C50: =COUNTIFS('Source Data'!B:B,">="&'PPT Charts & Data'!B50,'Source Data'!B:B,"<="&EOMONTH('PPT Charts & Data'!B50,0)) -> 39 | D50: =SUMIFS('Source Data'!J:J,'Source Data'!B:B,">="&'PPT Charts & Data'!B50,'Source Data'!B:B,"<="&EOMONTH('PPT Charts & Data'!B50,0)) -> 210000 | E50: =AVERAGEIFS('Source Data'!J:J,'Source Data'!B:B,">="&'PPT Charts & Data'!B50,'Source Data'!B:B,"<="&EOMONTH('PPT Charts & Data'!B50,0)) -> 5384.615385
B51: 2014-08-01 | C51: =COUNTIFS('Source Data'!B:B,">="&'PPT Charts & Data'!B51,'Source Data'!B:B,"<="&EOMONTH('PPT Charts & Data'!B51,0)) -> 36 | D51: =SUMIFS('Source Data'!J:J,'Source Data'!B:B,">="&'PPT Charts & Data'!B51,'Source Data'!B:B,"<="&EOMONTH('PPT Charts & Data'!B51,0)) -> 296700 | E51: =AVERAGEIFS('Source Data'!J:J,'Source Data'!B:B,">="&'PPT Charts & Data'!B51,'Source Data'!B:B,"<="&EOMONTH('PPT Charts & Data'!B51,0)) -> 8241.666667
B52: 2014-09-01 | C52: =COUNTIFS('Source Data'!B:B,">="&'PPT Charts & Data'!B52,'Source Data'!B:B,"<="&EOMONTH('PPT Charts & Data'!B52,0)) -> 40 | D52: =SUMIFS('Source Data'!J:J,'Source Data'!B:B,">="&'PPT Charts & Data'!B52,'Source Data'!B:B,"<="&EOMONTH('PPT Charts & Data'!B52,0)) -> 347200 | E52: =AVERAGEIFS('Source Data'!J:J,'Source Data'!B:B,">="&'PPT Charts & Data'!B52,'Source Data'!B:B,"<="&EOMONTH('PPT Charts & Data'!B52,0)) -> 8680
B53: 2014-10-01 | C53: =COUNTIFS('Source Data'!B:B,">="&'PPT Charts & Data'!B53,'Source Data'!B:B,"<="&EOMONTH('PPT Charts & Data'!B53,0)) -> 55 | D53: =SUMIFS('Source Data'!J:J,'Source Data'!B:B,">="&'PPT Charts & Data'!B53,'Source Data'!B:B,"<="&EOMONTH('PPT Charts & Data'!B53,0)) -> 465199 | E53: =AVERAGEIFS('Source Data'!J:J,'Source Data'!B:B,">="&'PPT Charts & Data'!B53,'Source Data'!B:B,"<="&EOMONTH('PPT Charts & Data'!B53,0)) -> 8458.163636
B54: 2014-11-01 | C54: =COUNTIFS('Source Data'!B:B,">="&'PPT Charts & Data'!B54,'Source Data'!B:B,"<="&EOMONTH('PPT Charts & Data'!B54,0)) -> 41 | D54: =SUMIFS('Source Data'!J:J,'Source Data'!B:B,">="&'PPT Charts & Data'!B54,'Source Data'!B:B,"<="&EOMONTH('PPT Charts & Data'!B54,0)) -> 287500 | E54: =AVERAGEIFS('Source Data'!J:J,'Source Data'!B:B,">="&'PPT Charts & Data'!B54,'Source Data'!B:B,"<="&EOMONTH('PPT Charts & Data'!B54,0)) -> 7012.195122
B55: 2014-12-01 | C55: =COUNTIFS('Source Data'!B:B,">="&'PPT Charts & Data'!B55,'Source Data'!B:B,"<="&EOMONTH('PPT Charts & Data'!B55,0)) -> 46 | D55: =SUMIFS('Source Data'!J:J,'Source Data'!B:B,">="&'PPT Charts & Data'!B55,'Source Data'!B:B,"<="&EOMONTH('PPT Charts & Data'!B55,0)) -> 261200 | E55: =AVERAGEIFS('Source Data'!J:J,'Source Data'!B:B,">="&'PPT Charts & Data'!B55,'Source Data'!B:B,"<="&EOMONTH('PPT Charts & Data'!B55,0)) -> 5678.26087
B56: TOTAL | C56: =SUM(C44:C55) -> 515 | D56: =SUM(D44:D55) -> 3632429 | E56: =SUM(E44:E55) -> 84343.55681

Sheet Source Data
A1: No | B1: Date | C1: Salesperson | D1: Make | E1: Model | F1: Type | G1: Colour | H1: Year | I1: Age | J1: Price | K1: Region
A2: 1 | B2: 2014-09-12 | C2: Lois Lane | D2: Toyota | E2: Corolla | F2: Sedan | G2: Red | H2: 2002 | I2: =YEAR(NOW())-H2 -> 14 | J2: 2100 | K2: South
A3: 2 | B3: 2014-09-08 | C3: Peter Parker | D3: BMW | E3: 3 Series | F3: Sedan | G3: Silver | H3: 1997 | I3: =YEAR(NOW())-H3 -> 19 | J3: 3000 | K3: East
A4: 3 | B4: 2014-05-09 | C4: Oliver Queen | D4: Toyota | E4: Celica | F4: Coupe | G4: Yellow | H4: 2000 | I4: 16 | J4: 1800 | K4: South
A5: 4 | B5: 2014-03-04 | C5: Lois Lane | D5: Ford | E5: Explorer | F5: SUV | G5: Silver | H5: 2002 | I5: 14 | J5: 2100 | K5: South
A6: 5 | B6: 2014-05-03 | C6: Mary Jane | D6: Hyundai | E6: Elantra | F6: Sedan | G6: White | H6: 1996 | I6: 20 | J6: 1400 | K6: East
A7: 6 | B7: 2014-03-06 | C7: Peter Parker | D7: Ford | E7: Fiesta | F7: Sedan | G7: Green | H7: 2006 | I7: 10 | J7: 6300 | K7: East
A8: 7 | B8: 2014-07-25 | C8: Oliver Queen | D8: BMW | E8: Z3 | F8: Coupe | G8: Silver | H8: 2003 | I8: 13 | J8: 2300 | K8: South
A9: 8 | B9: 2014-12-15 | C9: Oliver Queen | D9: Toyota | E9: Corolla | F9: Sedan | G9: White | H9: 1992 | I9: 24 | J9: 2300 | K9: South
A10: 9 | B10: 2014-01-07 | C10: Lois Lane | D10: Toyota | E10: Camry | F10: Wagon | G10: Yellow | H10: 2008 | I10: 8 | J10: 4200 | K10: South
A11: 10 | B11: 2014-04-22 | C11: Lois Lane | D11: KIA | E11: Mini | F11: Sedan | G11: Red | H11: 1993 | I11: 23 | J11: 2400 | K11: North
A12: 11 | B12: 2014-05-11 | C12: Lois Lane | D12: Volkswagen | E12: Toureg | F12: SUV | G12: Silver | H12: 2001 | I12: 15 | J12: 3900 | K12: North
A13: 12 | B13: 2014-09-29 | C13: Peter Parker | D13: Mitsubishi | E13: Lancer | F13: Sedan | G13: Red | H13: 1997 | I13: 19 | J13: 3000 | K13: North
A14: 13 | B14: 2014-10-31 | C14: Oliver Queen | D14: GMH | E14: Adventurer | F14: SUV | G14: White | H14: 1998 | I14: 18 | J14: 3200 | K14: South
A15: 14 | B15: 2014-07-11 | C15: Oliver Queen | D15: KIA | E15: Micro | F15: Sedan | G15: Red | H15: 2012 | I15: 4 | J15: 25000 | K15: East
A16: 15 | B16: 2014-05-28 | C16: Mary Jane | D16: Ford | E16: Mercury | F16: Coupe | G16: Blue | H16: 2008 | I16: 8 | J16: 4200 | K16: North
A17: 16 | B17: 2014-09-24 | C17: Peter Parker | D17: BMW | E17: Z4 | F17: Coupe | G17: Red | H17: 2007 | I17: 9 | J17: 7200 | K17: South
A18: 17 | B18: 2014-10-29 | C18: Peter Parker | D18: Renault | E18: Tricolour | F18: Wagon | G18: Silver | H18: 1992 | I18: 24 | J18: 1200 | K18: North
A19: 18 | B19: 2014-06-06 | C19: Oliver Queen | D19: Hyundai | E19: Elantra | F19: Coupe | G19: Silver | H19: 1996 | I19: 20 | J19: 1400 | K19: North
A20: 19 | B20: 2014-11-05 | C20: Lois Lane | D20: Peugot | E20: Supreme | F20: Sedan | G20: White | H20: 1998 | I20: 18 | J20: 3200 | K20: South
A21: 20 | B21: 2014-07-08 | C21: Oliver Queen | D21: Ford | E21: Mercury | F21: Coupe | G21: Red | H21: 1995 | I21: 21 | J21: 2700 | K21: South
A22: 21 | B22: 2014-09-29 | C22: Lois Lane | D22: Renault | E22: Mountaineer | F22: SUV | G22: Yellow | H22: 1996 | I22: 20 | J22: 2800 | K22: South
A23: 22 | B23: 2014-08-24 | C23: Oliver Queen | D23: Toyota | E23: Landcruiser | F23: SUV | G23: White | H23: 2007 | I23: 9 | J23: 3600 | K23: South
A24: 23 | B24: 2014-03-26 | C24: Oliver Queen | D24: GMH | E24: Adventurer | F24: SUV | G24: Silver | H24: 2006 | I24: 10 | J24: 3200 | K24: East
A25: 24 | B25: 2014-06-24 | C25: Lois Lane | D25: Volkswagen | E25: Beetle | F25: Sedan | G25: Red | H25: 2013 | I25: 3 | J25: 50000 | K25: North
A26: 25 | B26: 2014-04-20 | C26: Mary Jane | D26: BMW | E26: 7 Series | F26: Sedan | G26: Red | H26: 2005 | I26: 11 | J26: 2800 | K26: South
A27: 26 | B27: 2014-12-05 | C27: Oliver Queen | D27: BMW | E27: Z3 | F27: Coupe | G27: Blue | H27: 2000 | I27: 16 | J27: 3600 | K27: North
A28: 27 | B28: 2014-04-28 | C28: Lois Lane | D28: Ford | E28: Ecstasy | F28: Wagon | G28: Silver | H28: 2010 | I28: 6 | J28: 6300 | K28: North
A29: 28 | B29: 2014-12-28 | C29: Lois Lane | D29: Ford | E29: Fiesta | F29: Sedan | G29: Red | H29: 2001 | I29: 15 | J29: 2000 | K29: South
A30: 29 | B30: 2014-08-03 | C30: Lois Lane | D30: Volkswagen | E30: Beetle | F30: Sedan | G30: Red | H30: 2011 | I30: 5 | J30: 16700 | K30: East
A31: 30 | B31: 2014-11-22 | C31: Lois Lane | D31: Renault | E31: Formula 1 | F31: Coupe | G31: Blue | H31: 1996 | I31: 20 | J31: 2800 | K31: South
A32: 31 | B32: 2014-12-20 | C32: Peter Parker | D32: Nissan | E32: Pulsar | F32: Sedan | G32: Silver | H32: 1999 | I32: 17 | J32: 1700 | K32: East
A33: 32 | B33: 2014-04-24 | C33: Peter Parker | D33: Mitsubishi | E33: Lancer | F33: Sedan | G33: Red | H33: 2003 | I33: 13 | J33: 2300 | K33: North
A34: 33 | B34: 2014-06-30 | C34: Oliver Queen | D34: Nissan | E34: Pulsar | F34: Sedan | G34: Yellow | H34: 1996 | I34: 20 | J34: 2800 | K34: South
A35: 34 | B35: 2014-08-16 | C35: Oliver Queen | D35: KIA | E35: Stellar | F35: Sedan | G35: Silver | H35: 2008 | I35: 8 | J35: 4200 | K35: South
A36: 35 | B36: 2014-05-18 | C36: Mary Jane | D36: Toyota | E36: Celica | F36: Coupe | G36: Red | H36: 2000 | I36: 16 | J36: 3600 | K36: South
A37: 36 | B37: 2014-09-18 | C37: Peter Parker | D37: Toyota | E37: Celica | F37: Coupe | G37: Red | H37: 2003 | I37: 13 | J37: 2300 | K37: South
A38: 37 | B38: 2014-11-04 | C38: Oliver Queen | D38: Ford | E38: Mercury | F38: Coupe | G38: Red | H38: 2001 | I38: 15 | J38: 2000 | K38: North
A39: 38 | B39: 2014-03-22 | C39: Lois Lane | D39: Renault | E39: Megane | F39: Sedan | G39: Green | H39: 2011 | I39: 5 | J39: 16700 | K39: South
A40: 39 | B40: 2014-02-01 | C40: Lois Lane | D40: Volkswagen | E40: Golf | F40: Coupe | G40: Green | H40: 2005 | I40: 11 | J40: 2890 | K40: East
A41: 40 | B41: 2014-11-22 | C41: Oliver Queen | D41: BMW | E41: 3 Series | F41: Sedan | G41: Red | H41: 2000 | I41: 16 | J41: 3600 | K41: North
A42: 41 | B42: 2014-10-10 | C42: Peter Parker | D42: KIA | E42: Micro | F42: Sedan | G42: Red | H42: 1999 | I42: 17 | J42: 3400 | K42: South
A43: 42 | B43: 2014-07-19 | C43: Oliver Queen | D43: Renault | E43: Megane | F43: Sedan | G43: Red | H43: 2008 | I43: 8 | J43: 8400 | K43: South
A44: 43 | B44: 2014-01-07 | C44: Lois Lane | D44: Renault | E44: LeMans | F44: Sedan | G44: Green | H44: 2002 | I44: 14 | J44: 4200 | K44: North
A45: 44 | B45: 2014-01-14 | C45: Oliver Queen | D45: BMW | E45: X5 | F45: SUV | G45: Silver | H45: 1995 | I45: 21 | J45: 1400 | K45: North
A46: 45 | B46: 2014-12-08 | C46: Mary Jane | D46: Renault | E46: Lemans | F46: Sedan | G46: Silver | H46: 2007 | I46: 9 | J46: 3600 | K46: South
A47: 46 | B47: 2014-09-28 | C47: Lois Lane | D47: KIA | E47: Ranger | F47: SUV | G47: Silver | H47: 2003 | I47: 13 | J47: 4600 | K47: East
A48: 47 | B48: 2014-09-12 | C48: Peter Parker | D48: BMW | E48: 3 Series | F48: Sedan | G48: White | H48: 2003 | I48: 13 | J48: 2300 | K48: North
A49: 48 | B49: 2014-07-25 | C49: Oliver Queen | D49: BMW | E49: X3 | F49: SUV | G49: White | H49: 2007 | I49: 9 | J49: 3600 | K49: South
A50: 49 | B50: 2014-11-16 | C50: Lois Lane | D50: Ford | E50: Fiesta | F50: Sedan | G50: Red | H50: 1994 | I50: 22 | J50: 1300 | K50: East
A51: 50 | B51: 2014-03-31 | C51: Lois Lane | D51: Nissan | E51: Pulsar | F51: Sedan | G51: Silver | H51: 1992 | I51: 24 | J51: 2300 | K51: East
A52: 51 | B52: 2014-12-13 | C52: Oliver Queen | D52: Nissan | E52: Pulsar | F52: Sedan | G52: Green | H52: 2012 | I52: 4 | J52: 12500 | K52: North
A53: 52 | B53: 2014-06-24 | C53: Oliver Queen | D53: Mitsubishi | E53: Magna | F53: Sedan | G53: Silver | H53: 2004 | I53: 12 | J53: 5000 | K53: South
A54: 53 | B54: 2014-06-22 | C54: Lois Lane | D54: Peugot | E54: Supreme | F54: Sedan | G54: Silver | H54: 1997 | I54: 19 | J54: 1500 | K54: North
A55: 54 | B55: 2014-02-10 | C55: Oliver Queen | D55: Toyota | E55: Corolla | F55: Sedan | G55: Blue | H55: 2013 | I55: 3 | J55: 22000 | K55: South
A56: 55 | B56: 2014-04-25 | C56: Mary Jane | D56: BMW | E56: 7 Series | F56: Sedan | G56: Green | H56: 2013 | I56: 3 | J56: 37950 | K56: South
A57: 56 | B57: 2014-08-26 | C57: Lois Lane | D57: GMH | E57: Traveller | F57: Wagon | G57: Red | H57: 2010 | I57: 6 | J57: 12500 | K57: East
A58: 57 | B58: 2014-04-04 | C58: Peter Parker | D58: BMW | E58: Z3 | F58: Coupe | G58: Green | H58: 2005 | I58: 11 | J58: 2800 | K58: South
A59: 58 | B59: 2014-11-28 | C59: Peter Parker | D59: Volkswagen | E59: Golf | F59: Coupe | G59: Red | H59: 1991 | I59: 25 | J59: 1100 | K59: South
A60: 59 | B60: 2014-11-08 | C60: Oliver Queen | D60: GMH | E60: Adventurer | F60: SUV | G60: Silver | H60: 2003 | I60: 13 | J60: 2300 | K60: North
A61: 60 | B61: 2014-03-10 | C61: Lois Lane | D61: Ford | E61: Explorer | F61: SUV | G61: Yellow | H61: 1996 | I61: 20 | J61: 1400 | K61: North
A62: 61 | B62: 2014-09-30 | C62: Oliver Queen | D62: BMW | E62: 3 Series | F62: Sedan | G62: White | H62: 1991 | I62: 25 | J62: 2200 | K62: South
A63: 62 | B63: 2014-05-21 | C63: Lois Lane | D63: Nissan | E63: 350z | F63: Coupe | G63: Green | H63: 1998 | I63: 18 | J63: 1600 | K63: East
A64: 63 | B64: 2014-12-06 | C64: Oliver Queen | D64: Mitsubishi | E64: Pajero | F64: SUV | G64: Red | H64: 2008 | I64: 8 | J64: 8400 | K64: South
A65: 64 | B65: 2014-05-30 | C65: Peter Parker | D65: Toyota | E65: Camry | F65: Sedan | G65: Red | H65: 1994 | I65: 22 | J65: 1300 | K65: North
A66: 65 | B66: 2014-07-01 | C66: Mary Jane | D66: BMW | E66: 7 Series | F66: Sedan | G66: Silver | H66: 2004 | I66: 12 | J66: 2500 | K66: East
A67: 66 | B67: 2014-03-29 | C67: Lois Lane | D67: Ford | E67: Mercury | F67: Coupe | G67: Blue | H67: 1994 | I67: =YEAR(NOW())-H67 -> 22 | J67: 1300 | K67: South
A68: 67 | B68: 2014-02-15 | C68: Lois Lane | D68: Volkswagen | E68: Golf | F68: Coupe | G68: White | H68: 1999 | I68: 17 | J68: 1700 | K68: South
A69: 68 | B69: 2014-01-20 | C69: Lois Lane | D69: Nissan | E69: Estate | F69: Wagon | G69: Red | H69: 2012 | I69: 4 | J69: 25000 | K69: South
A70: 69 | B70: 2014-11-20 | C70: Peter Parker | D70: BMW | E70: 7 Series | F70: Sedan | G70: Red | H70: 1998 | I70: 18 | J70: 3200 | K70: South
A71: 70 | B71: 2014-12-26 | C71: Oliver Queen | D71: Peugot | E71: Supreme | F71: Coupe | G71: Red | H71: 1998 | I71: 18 | J71: 1600 | K71: East
A72: 71 | B72: 2014-03-22 | C72: Oliver Queen | D72: Toyota | E72: Rav 4 | F72: Coupe | G72: Silver | H72: 1991 | I72: 25 | J72: 2200 | K72: North
A73: 72 | B73: 2014-06-29 | C73: Lois Lane | D73: Volkswagen | E73: Passat | F73: Wagon | G73: Green | H73: 2012 | I73: 4 | J73: 25000 | K73: South
A74: 73 | B74: 2014-10-24 | C74: Oliver Queen | D74: Nissan | E74: 350z | F74: Coupe | G74: Red | H74: 2005 | I74: 11 | J74: 2800 | K74: East
A75: 74 | B75: 2014-11-25 | C75: Oliver Queen | D75: Ford | E75: Fiesta | F75: Sedan | G75: Silver | H75: 1992 | I75: 24 | J75: 1200 | K75: North
A76: 75 | B76: 2014-06-21 | C76: Mary Jane | D76: Nissan | E76: Pulsar | F76: Sedan | G76: Silver | H76: 1999 | I76: 17 | J76: 3490 | K76: South
A77: 76 | B77: 2014-05-09 | C77: Peter Parker | D77: Ford | E77: Raven | F77: Sedan | G77: Yellow | H77: 1998 | I77: 18 | J77: 3200 | K77: South
A78: 77 | B78: 2014-06-14 | C78: Peter Parker | D78: BMW | E78: Z4 | F78: Coupe | G78: Red | H78: 2011 | I78: 5 | J78: 8400 | K78: North
A79: 78 | B79: 2014-12-01 | C79: Oliver Queen | D79: Toyota | E79: Camry | F79: Sedan | G79: White | H79: 2013 | I79: 3 | J79: 50000 | K79: North
A80: 79 | B80: 2014-07-26 | C80: Lois Lane | D80: Toyota | E80: Corolla | F80: Wagon | G80: Silver | H80: 2004 | I80: 12 | J80: 5000 | K80: South
A81: 80 | B81: 2014-02-08 | C81: Oliver Queen | D81: KIA | E81: Stellar | F81: Sedan | G81: Silver | H81: 1999 | I81: 17 | J81: 3400 | K81: South
A82: 81 | B82: 2014-11-26 | C82: Oliver Queen | D82: Volkswagen | E82: Toureg | F82: SUV | G82: Silver | H82: 1998 | I82: 18 | J82: 3200 | K82: South
A83: 82 | B83: 2014-04-01 | C83: Lois Lane | D83: Mitsubishi | E83: Lancer | F83: Sedan | G83: Silver | H83: 2007 | I83: 9 | J83: 7200 | K83: North
A84: 83 | B84: 2014-11-20 | C84: Peter Parker | D84: GMH | E84: Adventurer | F84: SUV | G84: Green | H84: 1999 | I84: 17 | J84: 3400 | K84: North
A85: 84 | B85: 2014-07-08 | C85: Oliver Queen | D85: BMW | E85: 5 Series | F85: Sedan | G85: White | H85: 1998 | I85: 18 | J85: 1600 | K85: South
A86: 85 | B86: 2014-07-28 | C86: Mary Jane | D86: Nissan | E86: 350z | F86: Coupe | G86: Silver | H86: 2009 | I86: 7 | J86: 10000 | K86: North
A87: 86 | B87: 2014-02-09 | C87: Lois Lane | D87: Mitsubishi | E87: Pajero | F87: SUV | G87: Red | H87: 1999 | I87: 17 | J87: 3400 | K87: South
A88: 87 | B88: 2014-03-11 | C88: Lois Lane | D88: Toyota | E88: Camry | F88: Sedan | G88: Silver | H88: 2010 | I88: 6 | J88: 12500 | K88: South
A89: 88 | B89: 2014-08-30 | C89: Oliver Queen | D89: BMW | E89: 5 Series | F89: Sedan | G89: Blue | H89: 1996 | I89: 20 | J89: 2800 | K89: East
A90: 89 | B90: 2014-02-11 | C90: Oliver Queen | D90: Ford | E90: Mustang | F90: Coupe | G90: Green | H90: 1997 | I90: 19 | J90: 3000 | K90: North
A91: 90 | B91: 2014-01-09 | C91: Oliver Queen | D91: Volkswagen | E91: Golf | F91: Coupe | G91: Silver | H91: 1994 | I91: 22 | J91: 2500 | K91: South
A92: 91 | B92: 2014-09-12 | C92: Lois Lane | D92: Nissan | E92: Estate | F92: Wagon | G92: Green | H92: 2000 | I92: 16 | J92: 3600 | K92: South
A93: 92 | B93: 2014-03-15 | C93: Peter Parker | D93: BMW | E93: 3 Series | F93: Sedan | G93: Red | H93: 2009 | I93: 7 | J93: 5000 | K93: South
A94: 93 | B94: 2014-01-20 | C94: Peter Parker | D94: Renault | E94: Megane | F94: Sedan | G94: Green | H94: 1998 | I94: 18 | J94: 3200 | K94: East
A95: 94 | B95: 2014-03-16 | C95: Oliver Queen | D95: KIA | E95: Ranger | F95: SUV | G95: Silver | H95: 2006 | I95: 10 | J95: 6300 | K95: North
A96: 95 | B96: 2014-10-19 | C96: Mary Jane | D96: BMW | E96: 7 Series | F96: Sedan | G96: Red | H96: 1997 | I96: 19 | J96: 1500 | K96: South
A97: 96 | B97: 2014-02-14 | C97: Peter Parker | D97: BMW | E97: X5 | F97: SUV | G97: Yellow | H97: 2011 | I97: 5 | J97: 16700 | K97: North
A98: 97 | B98: 2014-06-12 | C98: Lois Lane | D98: Ford | E98: Fiesta | F98: Sedan | G98: Green | H98: 1999 | I98: 17 | J98: 1700 | K98: North
A99: 98 | B99: 2014-05-11 | C99: Oliver Queen | D99: Nissan | E99: Maxima | F99: Sedan | G99: Red | H99: 1992 | I99: 24 | J99: 2300 | K99: South
A100: 99 | B100: 2014-07-21 | C100: Oliver Queen | D100: Nissan | E100: Maxima | F100: Sedan | G100: White | H100: 2007 | I100: 9 | J100: 7200 | K100: North
A101: 100 | B101: 2014-03-12 | C101: Lois Lane | D101: Mitsubishi | E101: Magna | F101: Sedan | G101: Silver | H101: 1997 | I101: 19 | J101: 3000 | K101: North
A102: 101 | B102: 2014-07-19 | C102: Lois Lane | D102: Peugot | E102: Supreme | F102: Sedan | G102: Blue | H102: 2007 | I102: 9 | J102: 3600 | K102: East
A103: 102 | B103: 2014-08-22 | C103: Peter Parker | D103: Toyota | E103: Corolla | F103: Sedan | G103: Red | H103: 2006 | I103: 10 | J103: 3200 | K103: South
A104: 103 | B104: 2014-09-27 | C104: Lois Lane | D104: Toyota | E104: Corolla | F104: Sedan | G104: Red | H104: 2009 | I104: =YEAR(NOW())-H104 -> 7 | J104: 5000 | K104: South
A105: 104 | B105: 2014-08-30 | C105: Peter Parker | D105: BMW | E105: 3 Series | F105: Sedan | G105: Silver | H105: 2013 | I105: =YEAR(NOW())-H105 -> 3 | J105: 25000 | K105: East
A106: 105 | B106: 2014-11-21 | C106: Oliver Queen | D106: Toyota | E106: Celica | F106: Coupe | G106: Yellow | H106: 1999 | I106: 17 | J106: 1700 | K106: South
A107: 106 | B107: 2014-10-09 | C107: Lois Lane | D107: Ford | E107: Explorer | F107: SUV | G107: Silver | H107: 2007 | I107: 9 | J107: 3600 | K107: South
A108: 107 | B108: 2014-08-16 | C108: Mary Jane | D108: Hyundai | E108: Elantra | F108: Sedan | G108: White | H108: 2012 | I108: 4 | J108: 25000 | K108: East
A109: 108 | B109: 2014-03-21 | C109: Peter Parker | D109: Ford | E109: Fiesta | F109: Sedan | G109: Green | H109: 1994 | I109: 22 | J109: 2500 | K109: East
A110: 109 | B110: 2014-02-28 | C110: Oliver Queen | D110: BMW | E110: Z3 | F110: Coupe | G110: Silver | H110: 1997 | I110: 19 | J110: 1500 | K110: South
A111: 110 | B111: 2014-07-16 | C111: Oliver Queen | D111: Toyota | E111: Corolla | F111: Sedan | G111: White | H111: 2013 | I111: 3 | J111: 25000 | K111: South
A112: 111 | B112: 2014-10-07 | C112: Lois Lane | D112: Toyota | E112: Camry | F112: Wagon | G112: Yellow | H112: 2011 | I112: 5 | J112: 16700 | K112: South
A113: 112 | B113: 2014-06-07 | C113: Lois Lane | D113: KIA | E113: Mini | F113: Sedan | G113: Red | H113: 2003 | I113: 13 | J113: 2300 | K113: North
A114: 113 | B114: 2014-06-17 | C114: Lois Lane | D114: Volkswagen | E114: Toureg | F114: SUV | G114: Silver | H114: 2000 | I114: 16 | J114: 1800 | K114: North
A115: 114 | B115: 2014-10-16 | C115: Peter Parker | D115: Mitsubishi | E115: Lancer | F115: Sedan | G115: Red | H115: 2000 | I115: 16 | J115: 3600 | K115: North
A116: 115 | B116: 2014-01-24 | C116: Oliver Queen | D116: GMH | E116: Adventurer | F116: SUV | G116: White | H116: 2009 | I116: 7 | J116: 10000 | K116: South
A117: 116 | B117: 2014-10-27 | C117: Oliver Queen | D117: KIA | E117: Micro | F117: Sedan | G117: Red | H117: 2011 | I117: 5 | J117: 8400 | K117: East
A118: 117 | B118: 2014-01-12 | C118: Mary Jane | D118: Ford | E118: Mercury | F118: Coupe | G118: Blue | H118: 2013 | I118: 3 | J118: 25000 | K118: North
A119: 118 | B119: 2014-08-15 | C119: Peter Parker | D119: BMW | E119: Z4 | F119: Coupe | G119: Red | H119: 2011 | I119: 5 | J119: 16700 | K119: South
A120: 119 | B120: 2014-04-27 | C120: Peter Parker | D120: Renault | E120: Tricolour | F120: Wagon | G120: Silver | H120: 2002 | I120: 14 | J120: 4200 | K120: North
A121: 120 | B121: 2014-04-11 | C121: Oliver Queen | D121: Hyundai | E121: Elantra | F121: Coupe | G121: Silver | H121: 1997 | I121: 19 | J121: 3000 | K121: North
A122: 121 | B122: 2014-02-09 | C122: Lois Lane | D122: Peugot | E122: Supreme | F122: Sedan | G122: White | H122: 1991 | I122: 25 | J122: 2200 | K122: South
A123: 122 | B123: 2014-04-30 | C123: Oliver Queen | D123: Ford | E123: Mercury | F123: Coupe | G123: Red | H123: 2004 | I123: 12 | J123: 5000 | K123: South
A124: 123 | B124: 2014-07-07 | C124: Lois Lane | D124: Renault | E124: Mountaineer | F124: SUV | G124: Yellow | H124: 1999 | I124: 17 | J124: 1700 | K124: South
A125: 124 | B125: 2014-10-22 | C125: Oliver Queen | D125: Toyota | E125: Landcruiser | F125: SUV | G125: White | H125: 2010 | I125: 6 | J125: 6300 | K125: South
A126: 125 | B126: 2014-12-19 | C126: Oliver Queen | D126: GMH | E126: Adventurer | F126: SUV | G126: Silver | H126: 2003 | I126: 13 | J126: 2300 | K126: East
A127: 126 | B127: 2014-08-18 | C127: Lois Lane | D127: Volkswagen | E127: Beetle | F127: Sedan | G127: Red | H127: 1994 | I127: 22 | J127: 2500 | K127: North
A128: 127 | B128: 2014-10-06 | C128: Mary Jane | D128: BMW | E128: 7 Series | F128: Sedan | G128: Red | H128: 2013 | I128: 3 | J128: 25000 | K128: South
A129: 128 | B129: 2014-06-20 | C129: Oliver Queen | D129: BMW | E129: Z3 | F129: Coupe | G129: Blue | H129: 2005 | I129: 11 | J129: 5600 | K129: North
A130: 129 | B130: 2014-06-11 | C130: Lois Lane | D130: Ford | E130: Ecstasy | F130: Wagon | G130: Silver | H130: 1992 | I130: 24 | J130: 1200 | K130: North
A131: 130 | B131: 2014-05-18 | C131: Lois Lane | D131: Ford | E131: Fiesta | F131: Sedan | G131: Red | H131: 1991 | I131: 25 | J131: 2200 | K131: South
A132: 131 | B132: 2014-12-31 | C132: Lois Lane | D132: Volkswagen | E132: Beetle | F132: Sedan | G132: Red | H132: 1999 | I132: 17 | J132: 3400 | K132: East
A133: 132 | B133: 2014-03-04 | C133: Lois Lane | D133: Renault | E133: Formula 1 | F133: Coupe | G133: Blue | H133: 1999 | I133: 17 | J133: 3400 | K133: South
A134: 133 | B134: 2014-01-01 | C134: Peter Parker | D134: Nissan | E134: Pulsar | F134: Sedan | G134: Silver | H134: 1991 | I134: 25 | J134: 2200 | K134: East
A135: 134 | B135: 2014-09-18 | C135: Peter Parker | D135: Mitsubishi | E135: Lancer | F135: Sedan | G135: Red | H135: 1995 | I135: 21 | J135: 2700 | K135: North
A136: 135 | B136: 2014-12-16 | C136: Oliver Queen | D136: Nissan | E136: Pulsar | F136: Sedan | G136: Yellow | H136: 2002 | I136: 14 | J136: 2100 | K136: South
A137: 136 | B137: 2014-08-07 | C137: Oliver Queen | D137: KIA | E137: Stellar | F137: Sedan | G137: Silver | H137: 2005 | I137: 11 | J137: 5600 | K137: South
A138: 137 | B138: 2014-10-10 | C138: Mary Jane | D138: Toyota | E138: Celica | F138: Coupe | G138: Red | H138: 2009 | I138: 7 | J138: 4999 | K138: South
A139: 138 | B139: 2014-06-25 | C139: Peter Parker | D139: Toyota | E139: Celica | F139: Coupe | G139: Red | H139: 1992 | I139: 24 | J139: 1200 | K139: South
A140: 139 | B140: 2014-03-30 | C140: Oliver Queen | D140: Ford | E140: Mercury | F140: Coupe | G140: Red | H140: 1993 | I140: 23 | J140: 2400 | K140: North
A141: 140 | B141: 2014-09-17 | C141: Lois Lane | D141: Renault | E141: Megane | F141: Sedan | G141: Green | H141: 2013 | I141: 3 | J141: 25000 | K141: South
A142: 141 | B142: 2014-11-03 | C142: Lois Lane | D142: Volkswagen | E142: Golf | F142: Coupe | G142: Green | H142: 2003 | I142: 13 | J142: 4600 | K142: East
A143: 142 | B143: 2014-01-13 | C143: Oliver Queen | D143: BMW | E143: 3 Series | F143: Sedan | G143: Red | H143: 1994 | I143: 22 | J143: 2500 | K143: North
A144: 143 | B144: 2014-06-20 | C144: Peter Parker | D144: KIA | E144: Micro | F144: Sedan | G144: Red | H144: 1995 | I144: 21 | J144: 2700 | K144: South
A145: 144 | B145: 2014-08-16 | C145: Oliver Queen | D145: Renault | E145: Megane | F145: Sedan | G145: Red | H145: 1998 | I145: 18 | J145: 1600 | K145: South
A146: 145 | B146: 2014-09-03 | C146: Lois Lane | D146: Renault | E146: LeMans | F146: Sedan | G146: Green | H146: 1999 | I146: 17 | J146: 3400 | K146: North
A147: 146 | B147: 2014-04-19 | C147: Oliver Queen | D147: BMW | E147: X5 | F147: SUV | G147: Silver | H147: 2010 | I147: 6 | J147: 6300 | K147: North
A148: 147 | B148: 2014-10-24 | C148: Mary Jane | D148: Renault | E148: Lemans | F148: Sedan | G148: Silver | H148: 2004 | I148: 12 | J148: 2500 | K148: South
A149: 148 | B149: 2014-07-05 | C149: Lois Lane | D149: KIA | E149: Ranger | F149: SUV | G149: Silver | H149: 2005 | I149: 11 | J149: 5600 | K149: East
A150: 149 | B150: 2014-07-19 | C150: Peter Parker | D150: BMW | E150: 3 Series | F150: Sedan | G150: White | H150: 2007 | I150: 9 | J150: 3600 | K150: North
A151: 150 | B151: 2014-07-19 | C151: Oliver Queen | D151: BMW | E151: X3 | F151: SUV | G151: White | H151: 2009 | I151: 7 | J151: 10000 | K151: South
A152: 151 | B152: 2014-06-22 | C152: Lois Lane | D152: Ford | E152: Fiesta | F152: Sedan | G152: Red | H152: 2004 | I152: 12 | J152: 5000 | K152: East
A153: 152 | B153: 2014-04-25 | C153: Lois Lane | D153: Nissan | E153: Pulsar | F153: Sedan | G153: Silver | H153: 2013 | I153: 3 | J153: 50000 | K153: East
A154: 153 | B154: 2014-10-17 | C154: Oliver Queen | D154: Nissan | E154: Pulsar | F154: Sedan | G154: Green | H154: 1996 | I154: 20 | J154: 1400 | K154: North
A155: 154 | B155: 2014-04-06 | C155: Oliver Queen | D155: Mitsubishi | E155: Magna | F155: Sedan | G155: Silver | H155: 2013 | I155: 3 | J155: 25000 | K155: South
A156: 155 | B156: 2014-02-23 | C156: Lois Lane | D156: Peugot | E156: Supreme | F156: Sedan | G156: Silver | H156: 1996 | I156: 20 | J156: 1400 | K156: North
A157: 156 | B157: 2014-02-28 | C157: Oliver Queen | D157: Toyota | E157: Corolla | F157: Sedan | G157: Blue | H157: 2011 | I157: 5 | J157: 8400 | K157: South
A158: 157 | B158: 2014-01-21 | C158: Mary Jane | D158: BMW | E158: 7 Series | F158: Sedan | G158: Green | H158: 2002 | I158: 14 | J158: 2100 | K158: South
A159: 158 | B159: 2014-11-08 | C159: Lois Lane | D159: GMH | E159: Traveller | F159: Wagon | G159: Red | H159: 2006 | I159: 10 | J159: 3200 | K159: East
A160: 159 | B160: 2014-03-06 | C160: Peter Parker | D160: BMW | E160: Z3 | F160: Coupe | G160: Green | H160: 2004 | I160: 12 | J160: 2500 | K160: South
A161: 160 | B161: 2014-10-19 | C161: Peter Parker | D161: Volkswagen | E161: Golf | F161: Coupe | G161: Red | H161: 1994 | I161: 22 | J161: 2500 | K161: South
A162: 161 | B162: 2014-05-25 | C162: Oliver Queen | D162: GMH | E162: Adventurer | F162: SUV | G162: Silver | H162: 1996 | I162: 20 | J162: 1400 | K162: North
A163: 162 | B163: 2014-01-10 | C163: Lois Lane | D163: Ford | E163: Explorer | F163: SUV | G163: Yellow | H163: 1992 | I163: 24 | J163: 2300 | K163: North
A164: 163 | B164: 2014-04-14 | C164: Oliver Queen | D164: BMW | E164: 3 Series | F164: Sedan | G164: White | H164: 2011 | I164: 5 | J164: 8400 | K164: South
A165: 164 | B165: 2014-07-05 | C165: Lois Lane | D165: Nissan | E165: 350z | F165: Coupe | G165: Green | H165: 1994 | I165: 22 | J165: 1300 | K165: East
A166: 165 | B166: 2014-04-14 | C166: Oliver Queen | D166: Mitsubishi | E166: Pajero | F166: SUV | G166: Red | H166: 2013 | I166: 3 | J166: 25000 | K166: South
A167: 166 | B167: 2014-06-12 | C167: Peter Parker | D167: Toyota | E167: Camry | F167: Sedan | G167: Red | H167: 2013 | I167: 3 | J167: 50000 | K167: North
A168: 167 | B168: 2014-03-28 | C168: Mary Jane | D168: BMW | E168: 7 Series | F168: Sedan | G168: Silver | H168: 2001 | I168: 15 | J168: 3900 | K168: East
A169: 168 | B169: 2014-10-07 | C169: Lois Lane | D169: Ford | E169: Mercury | F169: Coupe | G169: Blue | H169: 1997 | I169: =YEAR(NOW())-H169 -> 19 | J169: 1500 | K169: South
A170: 169 | B170: 2014-05-13 | C170: Lois Lane | D170: Volkswagen | E170: Golf | F170: Coupe | G170: White | H170: 2004 | I170: 12 | J170: 5000 | K170: South
A171: 170 | B171: 2014-10-27 | C171: Lois Lane | D171: Nissan | E171: Estate | F171: Wagon | G171: Red | H171: 2013 | I171: 3 | J171: 50000 | K171: South
A172: 171 | B172: 2014-10-19 | C172: Peter Parker | D172: BMW | E172: 7 Series | F172: Sedan | G172: Red | H172: 2005 | I172: 11 | J172: 2800 | K172: South
A173: 172 | B173: 2014-11-13 | C173: Oliver Queen | D173: Peugot | E173: Supreme | F173: Coupe | G173: Red | H173: 2012 | I173: 4 | J173: 12500 | K173: East
A174: 173 | B174: 2014-05-21 | C174: Oliver Queen | D174: Toyota | E174: Rav 4 | F174: Coupe | G174: Silver | H174: 2004 | I174: 12 | J174: 5000 | K174: North
A175: 174 | B175: 2014-07-22 | C175: Lois Lane | D175: Volkswagen | E175: Passat | F175: Wagon | G175: Green | H175: 1998 | I175: 18 | J175: 3200 | K175: South
A176: 175 | B176: 2014-09-21 | C176: Oliver Queen | D176: Nissan | E176: 350z | F176: Coupe | G176: Red | H176: 2005 | I176: 11 | J176: 2800 | K176: East
A177: 176 | B177: 2014-01-12 | C177: Oliver Queen | D177: Ford | E177: Fiesta | F177: Sedan | G177: Silver | H177: 2009 | I177: 7 | J177: 10000 | K177: North
A178: 177 | B178: 2014-11-04 | C178: Mary Jane | D178: Nissan | E178: Pulsar | F178: Sedan | G178: Silver | H178: 2002 | I178: 14 | J178: 4200 | K178: South
A179: 178 | B179: 2014-06-06 | C179: Peter Parker | D179: Ford | E179: Raven | F179: Sedan | G179: Yellow | H179: 2001 | I179: 15 | J179: 3900 | K179: South
A180: 179 | B180: 2014-03-09 | C180: Peter Parker | D180: BMW | E180: Z4 | F180: Coupe | G180: Red | H180: 2003 | I180: 13 | J180: 2300 | K180: North
A181: 180 | B181: 2014-07-06 | C181: Oliver Queen | D181: Toyota | E181: Camry | F181: Sedan | G181: White | H181: 2007 | I181: 9 | J181: 7200 | K181: North
A182: 181 | B182: 2014-09-21 | C182: Lois Lane | D182: Toyota | E182: Corolla | F182: Wagon | G182: Silver | H182: 2007 | I182: 9 | J182: 3600 | K182: South
A183: 182 | B183: 2014-01-21 | C183: Oliver Queen | D183: KIA | E183: Stellar | F183: Sedan | G183: Silver | H183: 2005 | I183: 11 | J183: 2800 | K183: South
A184: 183 | B184: 2014-01-08 | C184: Oliver Queen | D184: Volkswagen | E184: Toureg | F184: SUV | G184: Silver | H184: 1996 | I184: 20 | J184: 1400 | K184: South
A185: 184 | B185: 2014-01-02 | C185: Lois Lane | D185: Mitsubishi | E185: Lancer | F185: Sedan | G185: Silver | H185: 2013 | I185: 3 | J185: 50000 | K185: North
A186: 185 | B186: 2014-02-22 | C186: Peter Parker | D186: GMH | E186: Adventurer | F186: SUV | G186: Green | H186: 2003 | I186: 13 | J186: 4600 | K186: North
A187: 186 | B187: 2014-10-17 | C187: Oliver Queen | D187: BMW | E187: 5 Series | F187: Sedan | G187: White | H187: 2013 | I187: 3 | J187: 50000 | K187: South
A188: 187 | B188: 2014-05-12 | C188: Mary Jane | D188: Nissan | E188: 350z | F188: Coupe | G188: Silver | H188: 1998 | I188: 18 | J188: 1600 | K188: North
A189: 188 | B189: 2014-04-03 | C189: Lois Lane | D189: Mitsubishi | E189: Pajero | F189: SUV | G189: Red | H189: 1991 | I189: 25 | J189: 2200 | K189: South
A190: 189 | B190: 2014-01-15 | C190: Lois Lane | D190: Toyota | E190: Camry | F190: Sedan | G190: Silver | H190: 1997 | I190: 19 | J190: 3000 | K190: South
A191: 190 | B191: 2014-10-18 | C191: Oliver Queen | D191: BMW | E191: 5 Series | F191: Sedan | G191: Blue | H191: 1997 | I191: 19 | J191: 1500 | K191: East
A192: 191 | B192: 2014-09-28 | C192: Oliver Queen | D192: Ford | E192: Mustang | F192: Coupe | G192: Green | H192: 1999 | I192: 17 | J192: 1700 | K192: North
A193: 192 | B193: 2014-05-24 | C193: Oliver Queen | D193: Volkswagen | E193: Golf | F193: Coupe | G193: Silver | H193: 2005 | I193: 11 | J193: 2800 | K193: South
A194: 193 | B194: 2014-02-07 | C194: Lois Lane | D194: Nissan | E194: Estate | F194: Wagon | G194: Green | H194: 2008 | I194: 8 | J194: 4200 | K194: South
A195: 194 | B195: 2014-06-29 | C195: Peter Parker | D195: BMW | E195: 3 Series | F195: Sedan | G195: Red | H195: 1997 | I195: 19 | J195: 3000 | K195: South
A196: 195 | B196: 2014-02-08 | C196: Peter Parker | D196: Renault | E196: Megane | F196: Sedan | G196: Green | H196: 2003 | I196: 13 | J196: 4600 | K196: East
A197: 196 | B197: 2014-01-25 | C197: Oliver Queen | D197: KIA | E197: Ranger | F197: SUV | G197: Silver | H197: 2012 | I197: 4 | J197: 25000 | K197: North
A198: 197 | B198: 2014-12-13 | C198: Mary Jane | D198: BMW | E198: 7 Series | F198: Sedan | G198: Red | H198: 2004 | I198: 12 | J198: 5000 | K198: South
A199: 198 | B199: 2014-09-21 | C199: Peter Parker | D199: BMW | E199: X5 | F199: SUV | G199: Yellow | H199: 1995 | I199: 21 | J199: 1400 | K199: North
A200: 199 | B200: 2014-11-03 | C200: Lois Lane | D200: Ford | E200: Fiesta | F200: Sedan | G200: Green | H200: 2013 | I200: 3 | J200: 25000 | K200: North
... 316 more rows
